[Event "FIDE WCCC Open-08 2024"]
[Site "Montesilvano"]
[Date "2024.11.22"]
[Round "7.26"]
[White "Vo, Daniel"]
[Black "Tokmachov, Daniel"]
[Result "1-0"]
[ECO "B10"]
[WhiteElo "1711"]
[BlackElo "1565"]
[Annotator "NA RC"]
[PlyCount "119"]
[EventDate "2024.11.18"]
[EventType "swiss"]
[EventCountry "ITA"]
[SourceTitle "playchess.com"]
[Source "ChessBase"]
[SourceQuality "1"]
[TimeControl "5400+30"]

1. e4 {[%emt 0:00:02]} c6 {[%emt 0:00:25]} 2. c4 {[%emt 0:03:04]} d5 {[%emt 0:01:28]} 3. cxd5 {[%emt 0:00:13]} cxd5 {[%emt 0:00:34]} 4. exd5 {[%emt 0:00:15]} Nf6 {[%emt 0:01:05]} 5. Bb5+ {[%emt 0:00:27]} Bd7 {[%emt 0:00:22]} 6. Bc4 {[%emt 0:00:18]} Bf5 {[%emt 0:01:58]} 7. Nc3 {[%emt 0:02:06]} Nbd7 {[%emt 0:00:45]} 8. Nge2 {[%emt 0:12:36]} a6 {[%emt 0:02:29]} 9. Nd4 {[%emt 0:02:08]} Bg6 {[%emt 0:01:16]} 10. d3 {[%emt 0:04:02]} Nb6 {[%emt 0:05:09]} 11. O-O {[%emt 0:01:53]} Nfxd5 {[%emt 0:00:15]} 12. Bxd5 {[%emt 0:07:06]} Nxd5 {[%emt 0:01:32]} 13. Qe2 {[%emt 0:02:27]} Nxc3 {[%emt 0:04:29]} 14. bxc3 {[%emt 0:00:15]} e6 {[%emt 0:00:14]} 15. f4 {[%emt 0:00:53]} Be7 {[%emt 0:01:34]} 16. f5 {[%emt 0:02:41]} exf5 {[%emt 0:01:44]} 17. Re1 {[%emt 0:58:34]} Rc8 {[%emt 0:02:55]} 18. Ba3 {[%emt 0:00:00]} Rc7 {[%emt 0:04:47]} 19. Qe5 {[%emt 0:00:00]} f6 {[%emt 0:01:11]} 20. Qe2 {[%emt 0:00:00]} Qd7 {[%emt 0:03:15]} 21. Ne6 {[%emt 0:00:00]} Bxa3 {[%emt 0:06:56]} 22. Nxc7+ {[%emt 0:00:00]} Kf7 {[%emt 0:03:21]} 23. Qe6+ {[%emt 0:00:00]} Qxe6 {[%emt 0:00:22]} 24. Nxe6 {[%emt 0:00:00]} Re8 {[%emt 0:01:06]} 25. Nf4 {[%emt 0:00:00]} Rd8 {[%emt 0:01:54]} 26. Rab1 {[%emt 0:00:00]} Rd7 {[%emt 0:04:00]} 27. Nxg6 {[%emt 0:00:00]} Kxg6 {[%emt 0:00:45]} 28. d4 {[%emt 0:00:00]} b5 {[%emt 0:02:27]} 29. Re6 {[%emt 0:00:00]} Bd6 {[%emt 0:03:24]} 30. Re3 {[%emt 0:00:00]} Kf7 {[%emt 0:01:09]} 31. Ra1 {[%emt 0:00:00]} Be7 {[%emt 0:01:10]} 32. Rd3 {[%emt 0:00:00]} b4 {[%emt 0:01:25]} 33. c4 {[%emt 0:00:00]} Bc5 {[%emt 0:05:13]} 34. Rad1 {[%emt 0:00:00]} Bd6 {[%emt 0:02:37]} 35. h3 {[%emt 0:00:00]} Kg6 {[%emt 0:00:56]} 36. Kf2 {[%emt 0:00:00]} f4 {[%emt 0:01:08]} 37. Kf3 {[%emt 0:00:00]} Kf5 {[%emt 0:00:35]} 38. c5 {[%emt 0:00:00]} Be7 {[%emt 0:00:47]} 39. Ke2 {[%emt 0:00:00]} Ke4 {[%emt 0:02:59]} 40. Re1 {[%emt 0:00:00]} Kd5 {[%emt 0:01:46]} 41. Kd2 {[%emt 0:00:00]} Kc4 {[%emt 0:00:00]} 42. c6 {[%emt 0:00:00]} Rc7 {[%emt 0:02:19]} 43. Rxe7 {[%emt 0:00:00]} Rxe7 {[%emt 0:00:32]} 44. d5 {[%emt 0:00:00]} Kc5 {[%emt 0:01:25]} 45. d6 {[%emt 0:00:00]} Re6 {[%emt 0:02:14]} 46. c7 {[%emt 0:00:00]} Rxd6 {[%emt 0:00:14]} 47. c8=Q+ {[%emt 0:00:00]} Rc6 {[%emt 0:00:31]} 48. Qf5+ {[%emt 0:00:00]} Kb6 {[%emt 0:00:23]} 49. Qxf4 {[%emt 0:00:00]} a5 {[%emt 0:01:53]} 50. Rd6 {[%emt 0:00:00]} Rxd6+ {[%emt 0:01:05]} 51. Qxd6+ {[%emt 0:00:00]} Kb5 {[%emt 0:00:44]} 52. Kd3 {[%emt 0:00:00]} Ka4 {[%emt 0:00:28]} 53. Qc6+ {[%emt 0:00:00]} Ka3 {[%emt 0:02:06]} 54. Qc2 {[%emt 0:00:00]} a4 {[%emt 0:00:31]} 55. Kc4 {[%emt 0:00:00]} h6 {[%emt 0:00:11]} 56. Qb1 {[%emt 0:00:00]} g6 {[%emt 0:00:27]} 57. Qxb4+ {[%emt 0:00:00]} Kxa2 {[%emt 0:00:11]} 58. Kc3 {[%emt 0:00:00]} a3 {[%emt 0:00:11]} 59. Kc2 {[%emt 0:00:00]} f5 {[%emt 0:00:12]} 60. Qb1# {[%emt 0:00:00]} 1-0

[Event "FIDE WCCC Open-08 2024"]
[Site "Montesilvano"]
[Date "2024.11.22"]
[Round "7.27"]
[White "Tuguldur, Baatarchuluun"]
[Black "Mudriievskyi, Jan"]
[Result "0-1"]
[ECO "B22"]
[WhiteElo "1590"]
[BlackElo "1682"]
[Annotator "NA RC"]
[PlyCount "58"]
[EventDate "2024.11.18"]
[EventType "swiss"]
[EventCountry "ITA"]
[SourceTitle "playchess.com"]
[Source "ChessBase"]
[SourceQuality "1"]
[TimeControl "5400+30"]

1. e4 {[%emt 0:00:05]} c5 {[%emt 0:00:05]} 2. c3 {[%emt 0:00:07]} d5 {[%emt 0:00:11]} 3. exd5 {[%emt 0:00:07]} Nf6 {[%emt 0:00:22]} 4. c4 {[%emt 0:00:08]} e6 {[%emt 0:00:10]} 5. dxe6 {[%emt 0:00:15]} Bxe6 {[%emt 0:03:04]} 6. Nf3 {[%emt 0:00:09]} Nc6 {[%emt 0:00:50]} 7. Nc3 {[%emt 0:00:07]} Be7 {[%emt 0:00:17]} 8. Be2 {[%emt 0:02:37]} O-O {[%emt 0:00:31]} 9. O-O {[%emt 0:00:24]} Qd7 {[%emt 0:01:22]} 10. d3 {[%emt 0:00:13]} Rad8 {[%emt 0:00:54]} 11. a3 {[%emt 0:03:39]} Rfe8 {[%emt 0:01:58]} 12. Ng5 {[%emt 0:00:48]} Bf5 {[%emt 0:01:45]} 13. Nge4 {[%emt 0:00:57]} Ne5 {[%emt 0:01:40]} 14. Qc2 {[%emt 0:01:13]} Nxd3 {[%emt 0:07:42]} 15. Rd1 {[%emt 0:01:27]} Nxe4 {[%emt 0:02:46]} 16. Rxd3 {[%emt 0:00:24]} Nxc3 {[%emt 0:02:52]} 17. Rxd7 {[%emt 0:00:20]} Bxc2 {[%emt 0:00:09]} 18. Rxd8 {[%emt 0:00:28]} Nxe2+ {[%emt 0:00:31]} 19. Kf1 {[%emt 0:00:18]} Bxd8 {[%emt 0:00:29]} 20. Be3 {[%emt 0:00:06]} Nd4 {[%emt 0:00:54]} 21. Rc1 {[%emt 0:00:15]} Bd3+ {[%emt 0:00:45]} 22. Ke1 {[%emt 0:00:10]} Ba5+ {[%emt 0:01:13]} 23. b4 {[%emt 0:00:38]} cxb4 {[%emt 0:01:55]} 24. Kd2 {[%emt 0:00:37]} Nb3+ {[%emt 0:01:11]} 25. Kxd3 {[%emt 0:00:12]} Nxc1+ {[%emt 0:00:08]} 26. Bxc1 {[%emt 0:00:06]} Rd8+ {[%emt 0:00:36]} 27. Ke2 {[%emt 0:00:49]} b3 {[%emt 0:00:25]} 28. Ke3 {[%emt 0:00:59]} Bd2+ {[%emt 0:00:40]} 29. Bxd2 {[%emt 0:00:25]} b2 {[%emt 0:00:00]} 0-1

[Event "FIDE WCCC Open-08 2024"]
[Site "Montesilvano"]
[Date "2024.11.22"]
[Round "7.28"]
[White "Petrenko, Tymofii"]
[Black "Saathvik Chakravarthy Ramayana"]
[Result "1/2-1/2"]
[ECO "B21"]
[WhiteElo "1678"]
[BlackElo "1466"]
[Annotator "NA RC"]
[PlyCount "53"]
[EventDate "2024.11.18"]
[EventType "swiss"]
[EventCountry "ITA"]
[SourceTitle "playchess.com"]
[Source "ChessBase"]
[SourceQuality "1"]
[TimeControl "5400+30"]

1. e4 {[%emt 0:00:04]} c5 {[%emt 0:00:12]} 2. d4 {[%emt 0:01:05]} cxd4 {[%emt 0:00:10]} 3. c3 {[%emt 0:00:05]} dxc3 {[%emt 0:00:17]} 4. Nxc3 {[%emt 0:00:12]} e6 {[%emt 0:00:14]} 5. Nf3 {[%emt 0:00:09]} a6 {[%emt 0:00:27]} 6. a4 {[%emt 0:00:32]} Ne7 {[%emt 0:06:03]} 7. Bc4 {[%emt 0:00:26]} Nbc6 {[%emt 0:00:34]} 8. O-O {[%emt 0:00:35]} Ng6 {[%emt 0:03:20]} 9. Qe2 {[%emt 0:02:52]} Bc5 {[%emt 0:01:36]} 10. Rd1 {[%emt 0:01:46]} Qc7 {[%emt 0:01:34]} 11. Ba2 {[%emt 0:06:48]} O-O {[%emt 0:01:06]} 12. Be3 {[%emt 0:04:49]} Bxe3 {[%emt 0:02:13]} 13. Qxe3 {[%emt 0:01:04]} b6 {[%emt 0:02:02]} 14. Rac1 {[%emt 0:01:22]} Bb7 {[%emt 0:09:39]} 15. Nd4 {[%emt 0:01:47]} Rfd8 {[%emt 0:09:23]} 16. Qd2 {[%emt 0:05:41]} Rac8 {[%emt 0:02:11]} 17. b4 {[%emt 0:02:39]} Qe5 {[%emt 0:02:47]} 18. Nf3 {[%emt 0:02:05]} Qf4 {[%emt 0:10:44]} 19. Qb2 {[%emt 0:09:48]} Nce5 {[%emt 0:03:47]} 20. Nxe5 {[%emt 0:00:50]} Nxe5 {[%emt 0:00:55]} 21. Qe2 {[%emt 0:02:33]} d5 {[%emt 0:07:02]} 22. exd5 {[%emt 0:03:45]} exd5 {[%emt 0:00:10]} 23. g3 {[%emt 0:00:35]} Nf3+ {[%emt 0:10:45]} 24. Kg2 {[%emt 0:02:09]} Nh4+ {[%emt 0:02:03]} 25. Kf1 {[%emt 0:03:37]} Qf3 {[%emt 0:03:27]} 26. Qxf3 {[%emt 0:00:22]} Nxf3 {[%emt 0:00:07]} 27. Nxd5 {[%emt 0:00:37]} 1/2-1/2

[Event "FIDE WCCC Open-08 2024"]
[Site "Montesilvano"]
[Date "2024.11.22"]
[Round "7.29"]
[White "Le Doan, Minh Thuc"]
[Black "Melkonyan, Mark"]
[Result "1-0"]
[ECO "E06"]
[WhiteElo "1677"]
[BlackElo "1445"]
[Annotator "NA RC"]
[PlyCount "92"]
[EventDate "2024.11.18"]
[EventType "swiss"]
[EventCountry "ITA"]
[SourceTitle "playchess.com"]
[Source "ChessBase"]
[SourceQuality "1"]
[TimeControl "5400+30"]

1. d4 {[%emt 0:00:01]} d5 {[%emt 0:00:22]} 2. c4 {[%emt 0:00:09]} e6 {[%emt 0:00:05]} 3. Nf3 {[%emt 0:00:08]} Nf6 {[%emt 0:00:43]} 4. g3 {[%emt 0:00:05]} Be7 {[%emt 0:00:42]} 5. Bg2 {[%emt 0:00:06]} O-O {[%emt 0:09:09]} 6. O-O {[%emt 0:00:20]} h6 {[%emt 0:03:37]} 7. Bf4 {[%emt 0:01:42]} Bd7 {[%emt 0:01:07]} 8. Nc3 {[%emt 0:02:17]} a6 {[%emt 0:01:42]} 9. cxd5 {[%emt 0:01:06]} exd5 {[%emt 0:00:52]} 10. Ne5 {[%emt 0:01:10]} c6 {[%emt 0:11:05]} 11. Na4 {[%emt 0:04:07]} Bf5 {[%emt 0:07:20]} 12. Rc1 {[%emt 0:01:48]} Nbd7 {[%emt 0:05:08]} 13. Qb3 {[%emt 0:02:44]} b5 {[%emt 0:03:37]} 14. Nc3 {[%emt 0:01:59]} Nxe5 {[%emt 0:18:09]} 15. dxe5 {[%emt 0:02:14]} Nd7 {[%emt 0:05:40]} 16. e4 {[%emt 0:00:32]} Nc5 {[%emt 0:03:55]} 17. Qc2 {[%emt 0:01:42]} Bg6 {[%emt 0:04:05]} 18. Rfd1 {[%emt 0:29:13]} b4 {[%emt 0:01:21]} 19. Na4 {[%emt 0:03:35]} Nxe4 {[%emt 0:08:50]} 20. Qxc6 {[%emt 0:01:29]} Rc8 {[%emt 0:07:27]} 21. Qxd5 {[%emt 0:02:23]} Qxd5 {[%emt 0:02:12]} 22. Rxd5 {[%emt 0:00:54]} Rxc1+ {[%emt 0:01:01]} 23. Bxc1 {[%emt 0:00:08]} Rc8 {[%emt 0:00:51]} 24. Be3 {[%emt 0:02:01]} Bg5 {[%emt 0:01:29]} 25. f4 {[%emt 0:01:03]} Be7 {[%emt 0:00:38]} 26. Rd4 {[%emt 0:00:27]} Nc5 {[%emt 0:00:51]} 27. Rc4 {[%emt 0:00:50]} Bd3 {[%emt 0:00:44]} 28. Rc1 {[%emt 0:00:23]} Rd8 {[%emt 0:00:45]} 29. Bxc5 {[%emt 0:01:46]} Rc8 {[%emt 0:00:37]} 30. Be3 {[%emt 0:00:40]} Rxc1+ {[%emt 0:00:23]} 31. Bxc1 {[%emt 0:00:15]} Bb5 {[%emt 0:00:22]} 32. b3 {[%emt 0:00:17]} Kf8 {[%emt 0:00:44]} 33. Bf1 {[%emt 0:00:24]} Bxf1 {[%emt 0:00:36]} 34. Kxf1 {[%emt 0:00:10]} Ke8 {[%emt 0:00:13]} 35. Ke2 {[%emt 0:00:17]} Kd7 {[%emt 0:00:15]} 36. Kd3 {[%emt 0:00:12]} Kc6 {[%emt 0:00:20]} 37. Kc4 {[%emt 0:00:08]} g6 {[%emt 0:00:31]} 38. Be3 {[%emt 0:00:15]} a5 {[%emt 0:00:16]} 39. Bb6 {[%emt 0:00:15]} g5 {[%emt 0:00:44]} 40. f5 {[%emt 0:00:50]} f6 {[%emt 0:00:17]} 41. e6 {[%emt 0:00:03]} Bd6 {[%emt 0:01:24]} 42. Bxa5 {[%emt 0:00:17]} h5 {[%emt 0:00:24]} 43. Bxb4 {[%emt 0:00:10]} Bc7 {[%emt 0:00:29]} 44. Be7 {[%emt 0:00:05]} Be5 {[%emt 0:00:25]} 45. Nc5 {[%emt 0:00:48]} Kc7 {[%emt 0:00:56]} 46. Nd7 {[%emt 0:00:16]} Kc6 {[%emt 0:01:07]} 1-0

[Event "FIDE WCCC Open-08 2024"]
[Site "Montesilvano"]
[Date "2024.11.22"]
[Round "7.30"]
[White "Ok, Miro"]
[Black "Glod, Peter"]
[Result "1-0"]
[ECO "C40"]
[WhiteElo "1656"]
[BlackElo "1409"]
[Annotator "NA RC"]
[PlyCount "85"]
[EventDate "2024.11.18"]
[EventType "swiss"]
[EventCountry "ITA"]
[SourceTitle "playchess.com"]
[Source "ChessBase"]
[SourceQuality "1"]
[TimeControl "5400+30"]

1. e4 {[%emt 0:00:59]} e5 {[%emt 0:00:08]} 2. Nf3 {[%emt 0:00:14]} d5 {[%emt 0:02:54]} 3. Nxe5 {[%emt 0:00:19]} Bd6 {[%emt 0:00:11]} 4. d4 {[%emt 0:00:42]} dxe4 {[%emt 0:00:36]} 5. Bc4 {[%emt 0:00:07]} Bxe5 {[%emt 0:00:19]} 6. Qh5 {[%emt 0:02:35]} Qe7 {[%emt 0:03:23]} 7. Qxe5 {[%emt 0:00:52]} Nc6 {[%emt 0:01:01]} 8. Qxg7 {[%emt 0:00:38]} Qf6 {[%emt 0:01:12]} 9. Bxf7+ {[%emt 0:00:54]} Qxf7 {[%emt 0:00:47]} 10. Qxh8 {[%emt 0:00:07]} Nce7 {[%emt 0:00:52]} 11. Qe5 {[%emt 0:00:09]} Qg6 {[%emt 0:06:35]} 12. O-O {[%emt 0:00:49]} Bh3 {[%emt 0:05:01]} 13. Qg3 {[%emt 0:00:35]} Qxg3 {[%emt 0:00:59]} 14. fxg3 {[%emt 0:01:11]} Be6 {[%emt 0:00:37]} 15. Nc3 {[%emt 0:01:05]} Bf5 {[%emt 0:03:44]} 16. Bg5 {[%emt 0:00:30]} Rc8 {[%emt 0:01:04]} 17. Rae1 {[%emt 0:01:15]} c5 {[%emt 0:01:21]} 18. Nxe4 {[%emt 0:00:53]} Bxe4 {[%emt 0:00:16]} 19. Rxe4 {[%emt 0:00:05]} cxd4 {[%emt 0:00:19]} 20. Rfe1 {[%emt 0:00:53]} Rc7 {[%emt 0:01:34]} 21. Bf4 {[%emt 0:00:33]} Rd7 {[%emt 0:01:27]} 22. Be5 {[%emt 0:00:49]} Kd8 {[%emt 0:07:10]} 23. Rxd4 {[%emt 0:00:33]} Rxd4 {[%emt 0:00:36]} 24. Bxd4 {[%emt 0:00:05]} Nc6 {[%emt 0:00:24]} 25. Rd1 {[%emt 0:00:22]} Ke8 {[%emt 0:02:20]} 26. Kf2 {[%emt 0:00:20]} Kf7 {[%emt 0:00:23]} 27. Ke3 {[%emt 0:00:10]} Ke7 {[%emt 0:05:47]} 28. c3 {[%emt 0:00:32]} Nh6 {[%emt 0:01:37]} 29. a4 {[%emt 0:01:46]} Nf5+ {[%emt 0:00:18]} 30. Ke4 {[%emt 0:00:12]} Nd6+ {[%emt 0:04:35]} 31. Kd3 {[%emt 0:00:11]} Ke6 {[%emt 0:01:35]} 32. b4 {[%emt 0:00:21]} Nc8 {[%emt 0:03:36]} 33. a5 {[%emt 0:01:27]} Nd6 {[%emt 0:04:19]} 34. Bc5 {[%emt 0:00:58]} Ne5+ {[%emt 0:01:36]} 35. Kc2 {[%emt 0:00:13]} Ndc4 {[%emt 0:01:24]} 36. Bxa7 {[%emt 0:00:33]} Ng4 {[%emt 0:03:15]} 37. Re1+ {[%emt 0:00:34]} Kd5 {[%emt 0:01:45]} 38. Kb3 {[%emt 0:00:51]} Nxh2 {[%emt 0:01:18]} 39. Rd1+ {[%emt 0:00:18]} Kc6 {[%emt 0:00:32]} 40. Kxc4 {[%emt 0:00:07]} Ng4 {[%emt 0:00:33]} 41. b5+ {[%emt 0:00:08]} Kc7 {[%emt 0:00:16]} 42. Bb6+ {[%emt 0:00:02]} Kb8 {[%emt 0:00:47]} 43. Rd8# {[%emt 0:00:02]} 1-0

[Event "FIDE WCCC Open-08 2024"]
[Site "Montesilvano"]
[Date "2024.11.22"]
[Round "7.31"]
[White "Xin, Andrew M."]
[Black "Huzela, Lukyan"]
[Result "0-1"]
[ECO "B07"]
[WhiteElo "1546"]
[BlackElo "1651"]
[Annotator "NA RC"]
[PlyCount "122"]
[EventDate "2024.11.18"]
[EventType "swiss"]
[EventCountry "ITA"]
[SourceTitle "playchess.com"]
[Source "ChessBase"]
[SourceQuality "1"]
[TimeControl "5400+30"]

1. d4 {[%emt 0:00:03]} Nf6 {[%emt 0:00:23]} 2. Nf3 {[%emt 0:00:23]} g6 {[%emt 0:00:08]} 3. Nbd2 {[%emt 0:00:06]} Bg7 {[%emt 0:00:06]} 4. e4 {[%emt 0:00:13]} d6 {[%emt 0:00:03]} 5. Bb5+ {[%emt 0:00:23]} Bd7 {[%emt 0:00:11]} 6. Bd3 {[%emt 0:00:06]} O-O {[%emt 0:00:35]} 7. O-O {[%emt 0:00:09]} Nc6 {[%emt 0:02:45]} 8. b3 {[%emt 0:00:47]} Nb4 {[%emt 0:00:06]} 9. Be2 {[%emt 0:00:50]} c5 {[%emt 0:01:21]} 10. Bb2 {[%emt 0:00:28]} cxd4 {[%emt 0:00:58]} 11. Nxd4 {[%emt 0:03:22]} e5 {[%emt 0:00:12]} 12. N4f3 {[%emt 0:00:12]} b5 {[%emt 0:08:47]} 13. c4 {[%emt 0:02:00]} bxc4 {[%emt 0:05:07]} 14. Nxc4 {[%emt 0:00:10]} Bb5 {[%emt 0:00:59]} 15. a3 {[%emt 0:07:15]} Bxc4 {[%emt 0:04:44]} 16. Bxc4 {[%emt 0:00:17]} Nc6 {[%emt 0:00:05]} 17. Qc2 {[%emt 0:00:57]} Rc8 {[%emt 0:00:34]} 18. Rad1 {[%emt 0:00:33]} Qe7 {[%emt 0:01:37]} 19. Rfe1 {[%emt 0:01:24]} Na5 {[%emt 0:00:59]} 20. Nd2 {[%emt 0:09:04]} Bh6 {[%emt 0:01:11]} 21. Nf3 {[%emt 0:06:12]} Nxc4 {[%emt 0:01:07]} 22. bxc4 {[%emt 0:00:12]} Qe6 {[%emt 0:00:37]} 23. Qd3 {[%emt 0:08:18]} Rfd8 {[%emt 0:03:02]} 24. Nd2 {[%emt 0:01:19]} Bxd2 {[%emt 0:02:53]} 25. Rxd2 {[%emt 0:01:12]} Qxc4 {[%emt 0:00:22]} 26. Qxc4 {[%emt 0:00:23]} Rxc4 {[%emt 0:00:06]} 27. Bxe5 {[%emt 0:00:29]} Rxe4 {[%emt 0:00:23]} 28. Rxe4 {[%emt 0:00:37]} Nxe4 {[%emt 0:00:03]} 29. Rd1 {[%emt 0:04:16]} Rb8 {[%emt 0:00:13]} 30. f3 {[%emt 0:01:08]} dxe5 {[%emt 0:01:07]} 31. fxe4 {[%emt 0:00:12]} Rb3 {[%emt 0:00:36]} 32. Rd8+ {[%emt 0:00:43]} Kg7 {[%emt 0:00:06]} 33. Rd5 {[%emt 0:00:10]} Kf6 {[%emt 0:00:07]} 34. Ra5 {[%emt 0:00:27]} Re3 {[%emt 0:00:29]} 35. Ra4 {[%emt 0:01:32]} Rd3 {[%emt 0:01:07]} 36. Kf2 {[%emt 0:02:42]} Rd4 {[%emt 0:00:10]} 37. Rb4 {[%emt 0:00:16]} Rxb4 {[%emt 0:00:35]} 38. axb4 {[%emt 0:00:09]} Ke6 {[%emt 0:00:03]} 39. Ke3 {[%emt 0:00:19]} Kd6 {[%emt 0:00:05]} 40. Kd3 {[%emt 0:00:00]} f5 {[%emt 0:00:00]} 41. exf5 {[%emt 0:01:39]} gxf5 {[%emt 0:00:00]} 42. Kc4 {[%emt 0:00:32]} Kc6 {[%emt 0:00:11]} 43. b5+ {[%emt 0:01:32]} Kb6 {[%emt 0:00:18]} 44. g3 {[%emt 0:05:51]} f4 {[%emt 0:00:15]} 45. gxf4 {[%emt 0:00:26]} exf4 {[%emt 0:00:03]} 46. Kd4 {[%emt 0:00:19]} Kxb5 {[%emt 0:00:07]} 47. Ke4 {[%emt 0:00:14]} a5 {[%emt 0:00:11]} 48. Kxf4 {[%emt 0:00:05]} a4 {[%emt 0:00:06]} 49. Kg5 {[%emt 0:00:39]} a3 {[%emt 0:00:07]} 50. Kh6 {[%emt 0:00:05]} a2 {[%emt 0:00:13]} 51. Kxh7 {[%emt 0:00:06]} a1=Q {[%emt 0:00:07]} 52. h4 {[%emt 0:00:22]} Qh1 {[%emt 0:00:05]} 53. Kg6 {[%emt 0:00:12]} Qxh4 {[%emt 0:00:05]} 54. Kf5 {[%emt 0:00:09]} Kc6 {[%emt 0:00:09]} 55. Ke5 {[%emt 0:00:13]} Qg4 {[%emt 0:00:10]} 56. Kf6 {[%emt 0:00:12]} Kd6 {[%emt 0:00:30]} 57. Kf7 {[%emt 0:00:09]} Qf5+ {[%emt 0:00:14]} 58. Kg7 {[%emt 0:00:11]} Ke7 {[%emt 0:00:20]} 59. Kh8 {[%emt 0:00:14]} Qg5 {[%emt 0:00:15]} 60. Kh7 {[%emt 0:00:25]} Kf6 {[%emt 0:00:09]} 61. Kh8 {[%emt 0:00:14]} Qg7# {[%emt 0:00:13]} 0-1

[Event "FIDE WCCC Open-08 2024"]
[Site "Montesilvano"]
[Date "2024.11.22"]
[Round "7.32"]
[White "Zhanabayev, Arystan"]
[Black "Cherem, Yoseph"]
[Result "1-0"]
[ECO "B13"]
[WhiteElo "1524"]
[BlackElo "1634"]
[Annotator "NA RC"]
[PlyCount "111"]
[EventDate "2024.11.18"]
[EventType "swiss"]
[EventCountry "ITA"]
[SourceTitle "playchess.com"]
[Source "ChessBase"]
[SourceQuality "1"]
[TimeControl "5400+30"]

1. e4 c6 2. d4 d5 3. exd5 cxd5 4. Bd3 Nf6 5. c3 Bg4 6. Qb3 Qc7 7. Ne2 e6 8. Bf4 Qc8 9. h3 Bxe2 10. Bxe2 Be7 11. Bxb8 Rxb8 12. Qa4+ Nd7 13. Bb5 a6 14. Bxd7+ Qxd7 15. Qxd7+ Kxd7 16. Nd2 b6 17. Rf1 g5 18. Nf3 f6 19. Kd2 h5 20. Ne1 Bd6 21. Nd3 e5 22. Rfe1 e4 23. Nb4 Bxb4 24. cxb4 f5 25. Rac1 Rhc8 26. Rc3 f4 27. h4 g4 28. Rec1 Rxc3 29. bxc3 a5 30. Rb1 a4 31. b5 Ke6 32. Rb4 Ra8 33. c4 Ra5 34. c5 bxc5 35. dxc5 Ra8 36. Kc3 Ke5 37. b6 Rd8 38. c6 Kd6 39. c7 Re8 40. Kd2 Rf8 41. Rxa4 f3 42. g3 Kc6 43. Rb4 Re8 44. Ke3 Rf8 45. a4 Kb7 46. a5 Rf6 47. a6+ Kc8 48. b7+ Kxc7 49. b8=Q+ Kd7 50. Rb7+ Ke6 51. Qc8+ Kd6 52. Rb6+ Ke5 53. Qb8+ Kf5 54. Qf4+ Kg6 55. Qxf6+ Kh7 56. Rb7+ {[%emt 0:28:00]} 1-0

[Event "FIDE WCCC Open-08 2024"]
[Site "Montesilvano"]
[Date "2024.11.22"]
[Round "7.33"]
[White "Kortmann, Pedro Reck"]
[Black "Shroff, Dhairya Amit"]
[Result "0-1"]
[ECO "C06"]
[WhiteElo "1630"]
[BlackElo "1444"]
[Annotator "NA RC"]
[PlyCount "60"]
[EventDate "2024.11.18"]
[EventType "swiss"]
[EventCountry "ITA"]
[SourceTitle "playchess.com"]
[Source "ChessBase"]
[SourceQuality "1"]
[TimeControl "5400+30"]

1. e4 {[%emt 0:00:11]} e6 {[%emt 0:00:54]} 2. d4 {[%emt 0:00:42]} d5 {[%emt 0:00:42]} 3. Nd2 {[%emt 0:00:10]} Nf6 {[%emt 0:00:48]} 4. e5 {[%emt 0:00:24]} Nfd7 {[%emt 0:00:18]} 5. Bd3 {[%emt 0:00:29]} c5 {[%emt 0:00:47]} 6. c3 {[%emt 0:00:08]} Nc6 {[%emt 0:00:38]} 7. Ngf3 {[%emt 0:01:58]} Qb6 {[%emt 0:00:45]} 8. O-O {[%emt 0:02:04]} Be7 {[%emt 0:01:28]} 9. a4 {[%emt 0:02:05]} a5 {[%emt 0:09:20]} 10. dxc5 {[%emt 0:02:47]} Bxc5 {[%emt 0:00:32]} 11. Qe2 {[%emt 0:01:23]} h6 {[%emt 0:02:00]} 12. c4 {[%emt 0:01:04]} O-O {[%emt 0:01:16]} 13. cxd5 {[%emt 0:06:15]} exd5 {[%emt 0:00:10]} 14. e6 {[%emt 0:01:16]} Nf6 {[%emt 0:02:33]} 15. exf7+ {[%emt 0:06:06]} Rxf7 {[%emt 0:00:35]} 16. Bg6 {[%emt 0:02:51]} Re7 {[%emt 0:02:44]} 17. Qb5 {[%emt 0:00:54]} Ng4 {[%emt 0:03:12]} 18. Qxb6 {[%emt 0:01:05]} Bxb6 {[%emt 0:00:48]} 19. Nb3 {[%emt 0:01:37]} Nxf2 {[%emt 0:02:52]} 20. Rxf2 {[%emt 0:01:22]} Re2 {[%emt 0:03:44]} 21. Be3 {[%emt 0:03:57]} Bxe3 {[%emt 0:01:21]} 22. Raf1 {[%emt 0:00:46]} Rxb2 {[%emt 0:01:40]} 23. Nfd2 {[%emt 0:01:28]} Ne5 {[%emt 0:01:48]} 24. Bb1 {[%emt 0:01:01]} Ng4 {[%emt 0:02:01]} 25. g3 {[%emt 0:01:32]} Nxf2 {[%emt 0:00:43]} 26. Rxf2 {[%emt 0:00:38]} Bxf2+ {[%emt 0:00:05]} 27. Kxf2 {[%emt 0:00:13]} Bd7 {[%emt 0:00:16]} 28. Nc5 {[%emt 0:00:48]} Rxd2+ {[%emt 0:00:10]} 29. Ke3 {[%emt 0:00:25]} Rb2 {[%emt 0:00:07]} 30. Bd3 {[%emt 0:00:32]} Bc6 {[%emt 1:01:13]} 0-1

[Event "FIDE WCCC Open-08 2024"]
[Site "Montesilvano"]
[Date "2024.11.22"]
[Round "7.34"]
[White "Kiss, Lorinc Istvan"]
[Black "Nguyen Phuc Cao Danh"]
[Result "0-1"]
[ECO "B38"]
[WhiteElo "1501"]
[BlackElo "1627"]
[Annotator "NA RC"]
[PlyCount "84"]
[EventDate "2024.11.18"]
[EventType "swiss"]
[EventCountry "ITA"]
[SourceTitle "playchess.com"]
[Source "ChessBase"]
[SourceQuality "1"]
[TimeControl "5400+30"]

1. e4 {[%emt 0:00:01]} c5 {[%emt 0:00:06]} 2. Nf3 {[%emt 0:01:59]} Nc6 {[%emt 0:00:12]} 3. d4 {[%emt 0:02:31]} cxd4 {[%emt 0:03:19]} 4. Nxd4 {[%emt 1:27:59]} g6 {[%emt 0:00:35]} 5. c4 {[%emt 0:00:00]} Bg7 {[%emt 0:00:18]} 6. Be3 {[%emt 0:00:00]} Nf6 {[%emt 0:01:12]} 7. Nc3 {[%emt 0:00:00]} O-O {[%emt 0:00:53]} 8. Be2 {[%emt 0:00:00]} d6 {[%emt 0:08:23]} 9. O-O {[%emt 0:00:00]} Ne5 {[%emt 0:16:35]} 10. f3 {[%emt 0:00:00]} Bd7 {[%emt 0:02:25]} 11. Qd2 {[%emt 0:00:00]} Rc8 {[%emt 0:02:50]} 12. b3 {[%emt 0:00:00]} a6 {[%emt 0:12:52]} 13. a4 {[%emt 0:00:00]} Ne8 {[%emt 0:08:57]} 14. a5 {[%emt 0:00:00]} Nc6 {[%emt 0:01:52]} 15. Nxc6 {[%emt 0:00:00]} Bxc6 {[%emt 0:01:00]} 16. Rfd1 {[%emt 0:00:00]} Nc7 {[%emt 0:01:01]} 17. Bb6 {[%emt 0:00:00]} Qd7 {[%emt 0:05:03]} 18. c5 {[%emt 0:00:00]} Na8 {[%emt 0:02:10]} 19. Rac1 {[%emt 0:00:00]} Nxb6 {[%emt 0:00:16]} 20. axb6 {[%emt 0:00:00]} Rfd8 {[%emt 0:02:53]} 21. Qf4 {[%emt 0:00:00]} Be5 {[%emt 0:08:50]} 22. Qe3 {[%emt 0:00:00]} Qe6 {[%emt 0:00:38]} 23. Bc4 {[%emt 0:00:00]} Qf6 {[%emt 0:01:17]} 24. Nd5 {[%emt 0:00:00]} Bxd5 {[%emt 0:00:21]} 25. Bxd5 {[%emt 0:00:00]} Bf4 {[%emt 0:00:39]} 26. Qc3 {[%emt 0:00:00]} Bxc1 {[%emt 0:01:27]} 27. Qxf6 {[%emt 0:11:30]} Be3+ {[%emt 0:00:57]} 28. Kf1 {[%emt 0:00:00]} exf6 {[%emt 0:00:07]} 29. b4 {[%emt 0:00:00]} dxc5 {[%emt 0:01:26]} 30. bxc5 {[%emt 0:00:00]} Bxc5 {[%emt 0:00:54]} 31. Rb1 {[%emt 0:00:00]} Be3 {[%emt 0:01:10]} 32. Ke2 {[%emt 0:00:00]} Rc1 {[%emt 0:00:39]} 33. Rb3 {[%emt 0:00:00]} Bc5 {[%emt 0:00:34]} 34. Rd3 {[%emt 0:00:00]} Rd6 {[%emt 0:00:20]} 35. Bxb7 {[%emt 0:00:00]} Rxd3 {[%emt 0:00:12]} 36. Kxd3 {[%emt 0:00:00]} Bxb6 {[%emt 0:00:07]} 37. Bxa6 {[%emt 0:00:00]} Rh1 {[%emt 0:00:19]} 38. h3 {[%emt 0:00:00]} Rh2 {[%emt 0:00:06]} 39. g4 {[%emt 0:00:00]} Rxh3 {[%emt 0:00:07]} 40. Ke2 {[%emt 0:00:00]} Kg7 {[%emt 0:00:21]} 41. Bc8 {[%emt 0:00:00]} Rh2+ {[%emt 0:00:22]} 42. Kd3 {[%emt 0:00:00]} Rf2 {[%emt 0:17:45]} 0-1